bitfinex/quotes_BTCUSD_20250418
["timestamp","ask_amount","ask_price","bid_price","bid_amount"]
[1744949691925,0.05983123,84522.0,84519.0,0.02262459]
[1744949692426,0.048,84522.0,84519.0,0.08178271]
[1744949692856,0.048,84522.0,84521.0,0.04732551]
[1744949693264,0.048,84522.0,84520.0,0.34]
[1744949695346,0.048,84522.0,84520.0,0.04732555]
[1744949695549,0.048,84522.0,84519.0,0.06995106]
[1744949695753,0.05983123,84522.0,84519.0,0.06995106]
[1744949700404,0.23663038,84520.0,84519.0,0.02262459]
[1744949700602,0.05983123,84522.0,84519.0,0.02262459]
[1744949702194,0.23662758,84521.0,84519.0,0.02262459]
[1744949702415,0.0467,84520.0,84519.0,0.02262459]
[1744949702634,0.0947,84520.0,84519.0,0.02262459]
[1744949703995,0.0947,84520.0,84508.0,0.0004213]
[1744949703996,0.2355854,84514.0,84508.0,0.0004213]
[1744949704200,0.23664399,84516.0,84508.0,0.0004213]
[1744949704201,0.28465838,84510.0,84508.0,0.0004213]
[1744949705130,0.28465838,84510.0,84509.0,0.02215004]
[1744949705580,0.33135838,84510.0,84509.0,0.02215004]
[1744949707166,0.45080629,84510.0,84509.0,0.02215004]
[1744949707390,0.45080629,84510.0,84509.0,0.0004213]
[1744949709575,0.45080629,84510.0,84500.0,0.01571]
[1744949709576,0.33138358,84501.0,84500.0,0.01061561]
[1744949709721,0.45083149,84501.0,84500.0,0.01061561]
[1744949711096,0.45083149,84501.0,84500.0,0.01075088]
[1744949713312,0.46537234,84501.0,84500.0,0.01075088]
[1744949718155,0.87817234,84501.0,84500.0,0.01075088]
[1744949718869,0.86363149,84501.0,84500.0,0.01075088]
[1744949723985,0.45083149,84501.0,84500.0,0.01075088]
[1744949731148,0.46537234,84501.0,84500.0,0.01075088]
[1744949732490,0.46537234,84501.0,84485.0,0.02241696]
[1744949732657,0.24854718,84491.0,84490.0,0.17411407]
[1744949732861,0.24854718,84491.0,84485.0,0.0001353]
[1744949732862,0.23672561,84486.0,84485.0,0.0001353]
[1744949734509,0.24858018,84480.0,84477.0,0.35183754]
[1744949734709,0.24858018,84480.0,84479.0,0.00044934]
[1744949734919,0.24858018,84480.0,84479.0,0.0286015]
[1744949735241,0.01183712,84480.0,84479.0,0.0286015]
[1744949739580,0.01183586,84489.0,84486.0,0.01183628]
[1744949739785,0.01183544,84492.0,84489.0,0.01183586]
[1744949739985,0.24853511,84496.0,84486.0,0.01183628]
[1744949740166,0.01183501,84495.0,84487.0,0.34]
[1744949740395,0.01183515,84494.0,84489.0,0.34]
[1744949740716,0.01183529,84493.0,84489.0,0.34]
[1744949743507,0.01183529,84493.0,84489.0,0.35183586]
[1744949744489,0.01183529,84493.0,84489.0,0.01183586]
[1744949744692,0.01183529,84493.0,84489.0,0.14287586]
[1744949748754,0.01183501,84495.0,84491.0,0.01183558]
[1744949749223,0.01183501,84495.0,84491.0,0.39917743]
[1744949750981,0.01183515,84494.0,84490.0,0.3991786]
[1744949751331,0.01183515,84494.0,84490.0,0.4001786]
[1744949752915,0.01183501,84495.0,84491.0,0.01183558]
[1744949753542,0.01183515,84494.0,84490.0,0.4001786]
[1744949754550,0.01183515,84494.0,84490.0,0.0601786]
[1744949756193,0.24853183,84497.0,84492.0,0.04734172]
[1744949756395,0.01183487,84496.0,84492.0,0.04734172]
[1744949756591,0.01183501,84495.0,84491.0,0.01183558]
[1744949756998,0.01183417,84501.0,84496.0,0.04733951]
[1744949757199,0.01183431,84500.0,84496.0,0.05917438]
[1744949757445,0.01183445,84499.0,84496.0,0.04733951]
[1744949757929,0.01183459,84498.0,84495.0,0.34]
[1744949761297,0.01183487,84496.0,84493.0,0.34]
[1744949762491,0.01183487,84496.0,84493.0,0.01183529]
[1744949762705,0.01183459,84498.0,84493.0,0.01183529]
[1744949762852,0.24852727,84498.0,84493.0,0.01183529]
[1744949763038,0.01183473,84497.0,84493.0,0.01183529]
[1744949768406,0.01183473,84497.0,84493.0,0.05917605]
[1744949771174,0.01183459,84498.0,84494.0,0.39917535]
[1744949771600,0.24852676,84498.0,84494.0,0.34]
[1744949771805,0.01183473,84497.0,84494.0,0.34]
[1744949772863,0.01183501,84495.0,84492.0,0.00896354]
[1744949773068,0.2367116,84491.0,84490.0,0.34]
[1744949773212,0.2824116,84491.0,84490.0,0.34]
[1744949773851,0.05753558,84491.0,84486.0,0.05918129]
[1744949774051,0.0457,84491.0,84488.0,0.04734353]
[1744949774261,0.05893501,84495.0,84490.0,0.01183572]
[1744949774262,0.01183515,84494.0,84490.0,0.01183572]
[1744949774897,0.0471,84495.0,84493.0,0.04734119]
[1744949775060,0.01183417,84501.0,84497.0,0.04733895]
[1744949775383,0.01183431,84500.0,84495.0,0.05917505]
[1744949775757,0.01183431,84500.0,84496.0,0.01183487]
[1744949777167,0.24852466,84499.0,84493.0,0.04734119]
[1744949777338,0.29543654,84495.0,84492.0,0.34]
[1744949777552,0.05873501,84495.0,84492.0,0.34]
[1744949778057,0.05873501,84495.0,84492.0,0.38734164]
[1744949779862,0.05873501,84495.0,84491.0,0.01183558]
[1744949780068,0.01183515,84494.0,84491.0,0.34]
[1744949781638,0.01183515,84494.0,84490.0,0.001]
[1744949781869,0.2367088,84492.0,84490.0,0.001]
[1744949782801,0.23966789,84492.0,84490.0,0.001]
[1744949783411,0.2367088,84492.0,84490.0,0.001]
[1744949783642,0.00295909,84491.0,84490.0,0.001]
[1744949786630,0.2367088,84492.0,84490.0,0.001]
[1744949786858,0.00295909,84491.0,84490.0,0.001]
[1744949787406,0.2367088,84492.0,84490.0,0.001]
[1744949789911,0.00295909,84491.0,84490.0,0.001]
[1744949796873,0.01183656,84484.0,84481.0,0.01183698]
[1744949798631,0.01183656,84484.0,84479.0,0.04708677]
[1744949798632,0.23674,84481.0,84479.0,0.04708677]
[1744949798774,0.00295937,84480.0,84479.0,0.04708677]
[1744949798978,0.23674,84481.0,84479.0,0.04708677]
[1744949801035,0.23969937,84481.0,84479.0,0.04708677]
[1744949805727,0.23675363,84476.0,84475.0,0.33750817]
[1744949806510,0.23675363,84476.0,84475.0,0.37260248]
[1744949811335,0.23775363,84476.0,84475.0,0.37260248]
[1744949816677,0.23775363,84476.0,84475.0,0.37509431]
[1744949817132,0.23775363,84476.0,84475.0,0.03509431]
[1744949817362,0.28375363,84476.0,84475.0,0.03509431]
[1744949817570,0.23676204,84473.0,84472.0,0.34]
[1744949819899,0.23676204,84473.0,84472.0,0.37515703]
[1744949821643,0.23776204,84473.0,84472.0,0.37515703]
[1744949821970,0.23776204,84473.0,84472.0,0.03515703]
[1744949822308,0.23776204,84473.0,84471.0,0.344]
[1744949822960,0.23776204,84473.0,84471.0,0.37823285]
[1744949825505,0.001,84473.0,84471.0,0.37823285]
[1744949825909,0.001,84473.0,84471.0,0.42558592]
[1744949832736,0.001,84473.0,84471.0,0.08558592]
[1744949833066,0.001,84473.0,84472.0,0.47104]
[1744949835933,0.001,84473.0,84472.0,0.13104]
[1744949844509,0.001,84473.0,84472.0,0.47104]
[1744949850472,0.001,84473.0,84472.0,0.59048791]
[1744949851490,0.001,84473.0,84472.0,0.59148791]
[1744949852097,0.0493,84492.0,84491.0,0.04734232]
[1744949852299,0.0493,84492.0,84491.0,0.17870232]
[1744949852679,0.0493,84492.0,84491.0,0.51870232]
[1744949854719,0.04939602,84492.0,84491.0,0.51870232]
[1744949855951,0.33510482,84492.0,84491.0,0.47136]
[1744949856353,0.33510482,84492.0,84491.0,0.34]
[1744949858655,0.33510482,84492.0,84491.0,0.34]
[1744949863152,0.09839602,84492.0,84491.0,0.38734232]
[1744949863288,0.05039602,84492.0,84491.0,0.38734232]
[1744949864431,0.05039602,84492.0,84491.0,0.34]
[1744949869371,0.05039602,84492.0,84491.0,0.38734232]
[1744949871235,0.04939602,84492.0,84491.0,0.38734232]
[1744949876760,0.04939602,84492.0,84491.0,0.51838232]
[1744949880300,9.602e-05,84492.0,84491.0,0.51838232]
[1744949881421,9.602e-05,84492.0,84491.0,0.51938232]
[1744949881631,0.0008428,84507.0,84506.0,0.04733391]
[1744949882063,0.0008428,84507.0,84506.0,0.37735391]
[1744949883518,0.0008428,84507.0,84506.0,0.18637902]
[1744949883683,0.0008428,84507.0,84506.0,0.04733391]
[1744949886695,0.0973428,84507.0,84506.0,0.17833391]
[1744949886898,0.0973428,84507.0,84506.0,0.04733391]
[1744949887148,0.0973428,84507.0,84506.0,0.17833391]
[1744949888416,0.0973428,84507.0,84506.0,0.131]
[1744949888846,0.0973428,84507.0,84506.0,0.17833391]
[1744949890602,0.0490428,84507.0,84506.0,0.17833391]
[1744949890881,0.00089089,84507.0,84506.0,0.17833391]
[1744949891120,0.00089089,84507.0,84506.0,0.51833391]
[1744949895043,0.00089089,84507.0,84506.0,0.63778182]
[1744949926061,0.00089089,84507.0,84506.0,0.50678182]
[1744949926340,0.00089089,84507.0,84506.0,0.63778182]
[1744949943438,0.09669089,84507.0,84506.0,0.51833391]
[1744949943642,0.09669089,84507.0,84506.0,0.38733391]
[1744949943826,0.09669089,84507.0,84506.0,0.51833391]
[1744949948065,0.09669089,84507.0,84506.0,0.38733391]
[1744949948271,0.0468,84502.0,84500.0,0.04733726]
[1744949948473,0.0468,84502.0,84501.0,0.471]
[1744949949594,0.0468,84502.0,84501.0,0.34]
[1744949949801,0.0958,84502.0,84501.0,0.471]
[1744949950832,0.09875855,84502.0,84501.0,0.471]
[1744949951785,0.0958,84502.0,84501.0,0.471]
[1744949951921,0.0958,84502.0,84501.0,0.17833671]
[1744949952326,0.0958,84502.0,84501.0,0.131]
[1744949958741,0.0958,84502.0,84501.0,0.471]
[1744949958921,0.0958,84502.0,84501.0,0.34]
[1744949961546,0.09875855,84502.0,84501.0,0.34]
[1744949966426,0.11059258,84502.0,84499.0,0.131]
[1744949971515,0.0958,84502.0,84500.0,0.34]
[1744949976152,0.0958,84502.0,84500.0,0.3873368]
[1744949977342,0.00295856,84501.0,84500.0,0.34]
[1744949977685,0.01479273,84501.0,84500.0,0.34]
[1744949982656,0.00295856,84501.0,84500.0,0.34]
[1744949984579,0.23964214,84501.0,84500.0,0.34]
[1744949985826,0.00295856,84501.0,84500.0,0.34]
[1744949986023,0.0958,84502.0,84500.0,0.34]
[1744950006094,0.34431505,84502.0,84500.0,0.34]
[1744950017312,0.34431505,84502.0,84500.0,0.34]
[1744950020246,0.34431505,84502.0,84501.0,0.34]
[1744950021729,0.10763403,84502.0,84501.0,0.34]
[1744950023922,0.049,84502.0,84501.0,0.34]
[1744950024744,0.049,84502.0,84500.0,0.131]
[1744950035869,0.06083403,84502.0,84500.0,0.13096]
[1744950038898,0.29751709,84502.0,84500.0,0.13096]
[1744950043290,0.049,84502.0,84500.0,0.13096]
[1744950043433,0.04929089,84507.0,84504.0,0.01183375]
[1744950043640,0.00089089,84507.0,84504.0,0.01183375]
[1744950043816,0.00089089,84507.0,84505.0,0.0547186]
[1744950044022,0.00089089,84507.0,84505.0,0.00738423]
[1744950044428,0.00089089,84507.0,84506.0,0.00738423]
[1744950045542,0.00089089,84507.0,84506.0,0.05471814]
[1744950046884,0.00089089,84507.0,84506.0,0.00738423]
[1744950047157,0.00089089,84507.0,84506.0,0.05471814]
[1744950053656,0.00089089,84507.0,84506.0,0.00738423]
[1744950053929,0.23755767,84507.0,84506.0,0.00738423]
[1744950054084,0.28675767,84507.0,84506.0,0.00738423]
[1744950054717,0.05009089,84507.0,84506.0,0.00738423]
[1744950054921,0.05009089,84507.0,84505.0,0.13096]
[1744950055915,0.28676015,84507.0,84505.0,0.13096]
[1744950057157,0.05009089,84507.0,84503.0,0.01183389]
[1744950057424,0.05009089,84507.0,84506.0,0.13096]
[1744950061092,0.05009089,84507.0,84493.0,0.04734108]
[1744950061093,0.01183431,84500.0,84495.0,0.05917465]
[1744950061429,0.0476,84499.0,84498.0,0.13096]
[1744950067613,5.0476,84499.0,84498.0,0.13096]
[1744950068465,5.0476,84499.0,84498.0,0.17829839]
[1744950072190,5.0476,84499.0,84498.0,0.17825839]
[1744950075592,5.0,84499.0,84498.0,0.17825839]
[1744950075821,5.0,84499.0,84498.0,0.2977063]
[1744950075981,5.0,84499.0,84498.0,0.2987063]
[1744950080255,5.0,84499.0,84498.0,0.1677863]
[1744950080390,5.0,84499.0,84498.0,0.2987063]
[1744950080892,5.0,84499.0,84498.0,0.13192]
[1744950081110,5.0492,84499.0,84498.0,0.13192]
[1744950081306,5.0492,84499.0,84498.0,0.001]
[1744950081506,5.0492,84499.0,84498.0,0.13192]
[1744950090125,5.0492,84499.0,84498.0,0.17925839]
[1744950091453,5.0492,84499.0,84498.0,0.001]
[1744950091679,5.0978,84499.0,84498.0,0.001]
[1744950104486,0.01183529,84493.0,84490.0,0.31389427]
[1744950104694,0.00295893,84492.0,84490.0,0.1397802]
[1744950106219,0.00295893,84492.0,84490.0,0.0088602]
[1744950106724,0.0469,84491.0,84488.0,0.011836]
[1744950108624,0.0469,84491.0,84489.0,0.04734344]
[1744950109963,0.0469,84491.0,84488.0,0.011836]
[1744950111219,0.0479,84491.0,84488.0,0.011836]
[1744950112389,0.0479,84491.0,84489.0,0.04734344]
[1744950114407,0.0479,84491.0,84490.0,0.00738552]
[1744950115232,0.0479,84491.0,84489.0,0.04734344]
[1744950117643,0.0479,84491.0,84490.0,0.00738547]
[1744950119252,0.0479,84491.0,84489.0,0.04734344]
[1744950139103,0.001,84491.0,84489.0,0.04734344]
[1744950151609,0.002,84491.0,84489.0,0.04734344]
[1744950155651,0.002,84491.0,84489.0,0.16679135]
[1744950155851,0.002,84491.0,84490.0,0.11944791]
[1744950157332,5.0,84499.0,84496.0,0.01183487]
[1744950157894,5.0,84499.0,84497.0,0.38733895]
[1744950164733,5.0,84499.0,84498.0,0.47092]
[1744950165554,5.0479,84499.0,84498.0,0.47092]
[1744950169652,5.0479,84499.0,84498.0,0.47088]
[1744950171248,5.28458919,84499.0,84498.0,0.47188]
[1744950171455,5.33208919,84499.0,84498.0,0.47188]
[1744950172378,5.0954,84499.0,84498.0,0.47188]
[1744950173079,5.0954,84499.0,84498.0,0.13188]
[1744950175048,5.0954,84499.0,84498.0,0.341]
[1744950175262,5.0954,84499.0,84498.0,0.47188]
[1744950181763,5.0954,84499.0,84498.0,0.47088]
[1744950189496,5.0954,84499.0,84498.0,0.34]
[1744950200227,0.23670319,84494.0,84493.0,0.13088]
[1744950200431,0.33162561,84486.0,84485.0,0.34]
[1744950200855,0.0118367,84483.0,84480.0,0.001]
[1744950201206,0.28473962,84481.0,84480.0,0.001]
[1744950202707,0.28478474,84481.0,84480.0,0.001]
[1744950220345,0.23676204,84473.0,84471.0,0.21234692]
[1744950220544,0.00295961,84472.0,84471.0,0.03823285]
[1744950223021,0.0491,84473.0,84471.0,0.03823285]
[1744950225314,0.0491,84479.0,84474.0,0.01183796]
[1744950225550,0.01183712,84480.0,84476.0,0.01183768]
[1744950225894,0.01479666,84479.0,84476.0,0.01183768]
[1744950226306,0.01479666,84479.0,84475.0,0.01183782]
[1744950226512,0.0118374,84478.0,84474.0,0.34]
[1744950226691,0.0029594,84477.0,84474.0,0.34]
[1744950228364,0.0118374,84478.0,84474.0,0.35183796]
[1744950228568,0.0147968,84478.0,84474.0,0.35183796]
[1744950229807,0.01183712,84480.0,84476.0,0.01183768]
[1744950230015,0.01183726,84479.0,84474.0,0.01183796]
[1744950230190,0.0118374,84478.0,84474.0,0.01183796]
[1744950236471,0.01183796,84474.0,84471.0,0.03823285]
[1744950239871,0.24859981,84474.0,84471.0,0.03823285]
[1744950240384,0.23676448,84473.0,84471.0,0.03823285]
[1744950242130,0.0959595,84472.0,84471.0,0.03823285]
[1744950242392,0.093,84472.0,84471.0,0.03823285]
[1744950242800,0.01183796,84474.0,84471.0,0.03823285]
[1744950242939,0.05813726,84479.0,84471.0,0.03823285]
[1744950242940,0.24857565,84482.0,84477.0,0.01183754]
[1744950243157,0.0118374,84478.0,84474.0,0.01183796]
[1744950244524,0.01183754,84477.0,84474.0,0.01183796]
[1744950246954,0.01183726,84479.0,84476.0,0.01183768]
[1744950247090,0.002,85999.0,84489.0,0.01183586]
[1744950247091,0.0463,84491.0,84489.0,0.01183586]
[1744950247295,0.0463,84491.0,84488.0,0.04734353]
[1744950247789,0.05853544,84492.0,84488.0,0.04734353]
[1744950248024,0.01183558,84491.0,84487.0,0.01183614]
[1744950248217,0.05853544,84492.0,84488.0,0.05918]
[1744950248579,0.01183558,84491.0,84487.0,0.35183614]
[1744950248913,0.05853544,84492.0,84488.0,0.05918]
[1744950249128,0.01183558,84491.0,84487.0,0.34]
[1744950249448,0.01183558,84491.0,84486.0,0.05918119]
[1744950249652,0.01183558,84491.0,84487.0,0.01183614]
[1744950250476,0.01183558,84491.0,84486.0,0.04734491]
[1744950250595,0.01183572,84490.0,84486.0,0.04734491]
[1744950250792,0.01183572,84490.0,84486.0,0.05918119]
[1744950251877,0.01183572,84490.0,84486.0,0.04734491]
[1744950253513,0.05853544,84492.0,84488.0,0.047344]
[1744950253890,0.0467,84492.0,84488.0,0.047344]
[1744950254095,0.0467,84492.0,84488.0,0.05918]
[1744950254492,0.0467,84492.0,84489.0,0.01183586]
[1744950255022,0.0467,84492.0,84489.0,0.04734288]
[1744950255832,0.05853544,84492.0,84488.0,0.047344]
[1744950258289,0.01183586,84489.0,84485.0,0.35183642]
[1744950258468,0.01183572,84490.0,84486.0,0.04734512]
[1744950258648,0.01183572,84490.0,84486.0,0.0591814]
[1744950259474,0.05853544,84492.0,84487.0,0.05918015]
[1744950259898,0.0467,84492.0,84490.0,0.04734266]
[1744950260538,0.05853544,84492.0,84488.0,0.351836]
[1744950262297,0.05853544,84492.0,84488.0,0.0591795]
[1744950262696,0.05853544,84492.0,84448.0,0.07780547]
[1744950262697,0.01183586,84489.0,84484.0,0.01183656]
[1744950262979,0.2367228,84487.0,84482.0,0.34]
[1744950263195,0.01183628,84486.0,84482.0,0.34]
[1744950263664,0.01183642,84485.0,84482.0,0.34]
[1744950265233,0.01183642,84485.0,84481.0,0.05918478]
[1744950267033,0.01183684,84482.0,84479.0,0.34]
[1744950267285,0.0481,84481.0,84479.0,0.34]
[1744950272663,0.28484217,84481.0,84479.0,0.34]
[1744950272870,0.0494,84480.0,84479.0,0.34]
[1744950275552,0.0494,84480.0,84479.0,0.34738615]
[1744950276777,0.0494,84480.0,84479.0,0.34]
[1744950277647,0.0494,84480.0,84479.0,0.34738612]
[1744950279575,0.0494,84480.0,84479.0,0.34]
[1744950280470,0.0494,84480.0,84479.0,0.34738654]
[1744950282707,0.0494,84480.0,84479.0,0.34]
[1744950284702,0.0494,84480.0,84477.0,0.05918722]
[1744950285303,0.0494,84480.0,84479.0,0.04734904]
[1744950287716,0.0494,84480.0,84479.0,0.05473546]
[1744950300897,0.29576434,84486.0,84480.0,0.34]
[1744950301121,0.0118367,84483.0,84480.0,0.34]
[1744950301290,0.0118367,84483.0,84481.0,0.00738642]
[1744950302055,0.0118367,84483.0,84482.0,0.00738642]
[1744950305543,0.01183684,84482.0,84479.0,0.38734904]
[1744950308246,0.0472,84481.0,84479.0,0.38734904]
[1744950308980,0.0457,84480.0,84479.0,0.38734904]
[1744950310087,0.0457,84480.0,84479.0,0.34]
[1744950313905,0.05753712,84480.0,84476.0,0.34]
[1744950315351,0.05753712,84480.0,84476.0,0.39918787]
[1744950316514,0.05753712,84480.0,84476.0,0.34]
[1744950317585,0.05753712,84480.0,84476.0,0.35183768]
[1744950321832,0.0457,84480.0,84477.0,0.0591877]
[1744950321990,0.05753712,84480.0,84477.0,0.04735016]
[1744950323051,0.05753712,84480.0,84476.0,0.35183768]
[1744950327455,0.01183726,84479.0,84476.0,0.34]
[1744950329323,0.05753712,84480.0,84476.0,0.34]
[1744950329782,0.29427992,84480.0,84476.0,0.34]
[1744950331952,0.05753712,84480.0,84476.0,0.34]
[1744950332228,0.05753712,84480.0,84476.0,0.35183768]
[1744950333043,0.05753712,84480.0,84476.0,0.01183768]
[1744950334755,0.0457,84480.0,84477.0,0.04735016]
[1744950336670,0.0457,84480.0,84477.0,0.0591877]
[1744950336852,0.0457,84480.0,84479.0,0.04734904]
[1744950338207,0.0457,84480.0,84477.0,0.0591877]
[1744950338868,0.0457,84480.0,84479.0,0.04734904]
[1744950353719,0.0457,84480.0,84477.0,0.0591877]
[1744950353970,0.0457,84480.0,84479.0,0.04734904]
[1744950366625,0.0492,84487.0,84485.0,0.0473456]
[1744950366830,0.05215913,84487.0,84485.0,0.0473456]
[1744950369953,0.01183628,84486.0,84483.0,0.34]
[1744950370126,0.01183628,84486.0,84482.0,0.04734685]
[1744950373869,0.01183628,84486.0,84482.0,0.05918369]
[1744950374926,0.0492,84487.0,84483.0,0.04734629]
[1744950376482,0.06103614,84487.0,84483.0,0.04734629]
[1744950376710,0.01183628,84486.0,84483.0,0.04734629]
[1744950377608,0.06103614,84487.0,84481.0,0.01183698]
[1744950377609,0.0492,84487.0,84481.0,0.01183698]
[1744950377847,0.0458,84488.0,84481.0,0.01183698]
[1744950378250,0.0492,84494.0,84482.0,0.11944791]
[1744950378514,0.0492,84494.0,84484.0,0.34822814]
[1744950378795,0.0492,84494.0,84485.0,0.11944791]
[1744950379278,0.0492,84494.0,84486.0,0.0073855]
[1744950379507,0.0492,84494.0,84488.0,0.34]
[1744950379743,0.0458,84496.0,84488.0,0.45944791]
[1744950379999,0.0458,84496.0,84493.0,0.39917648]
[1744950380747,0.0458,84496.0,84495.0,0.04734007]
[1744950381480,0.0458,84496.0,84495.0,0.05472557]
[1744950388131,0.0458,84496.0,84495.0,0.04734007]
[1744950389931,0.0458,84496.0,84495.0,0.04734007]
[1744950397181,0.0458,84496.0,84495.0,0.05472494]
[1744950397810,5.0,84499.0,84496.0,0.01183487]
[1744950398532,5.0,84499.0,84497.0,0.00738487]
[1744950399705,5.0,84499.0,84498.0,0.00738487]
[1744950400989,5.0,84499.0,84498.0,0.05472326]
[1744950401174,5.0,84499.0,84498.0,0.51417117]
[1744950402543,4.9936,84499.0,84498.0,0.51417117]
[1744950402894,4.9936,84499.0,84498.0,0.5067863]
[1744950403108,4.93452706,84499.0,84498.0,0.5067863]
[1744950403303,4.88418707,84499.0,84498.0,0.5067863]
[1744950403518,4.88418707,84499.0,84498.0,0.51941737]
[1744950403717,4.86632707,84499.0,84498.0,0.51941737]
[1744950404287,4.84860707,84499.0,84498.0,0.51941737]
[1744950407676,4.78953413,84499.0,84498.0,0.51941737]
[1744950407883,4.74613413,84499.0,84498.0,0.51941737]
[1744950408356,4.74613413,84499.0,84498.0,0.52041737]
[1744950411713,4.74613413,84499.0,84498.0,0.38833839]
[1744950412358,4.74613413,84499.0,84498.0,0.51921839]
[1744950416050,4.74613413,84499.0,84498.0,0.6386663]
[1744950417018,4.73817413,84499.0,84498.0,0.6386663]
[1744950417429,4.64823413,84499.0,84498.0,0.6386663]
[1744950418018,4.64042413,84499.0,84498.0,0.6386663]
[1744950420435,4.59761413,84499.0,84498.0,0.6386663]
[1744950421895,4.59761413,84499.0,84498.0,0.6376663]
[1744950422271,4.54838413,84499.0,84498.0,0.6376663]
[1744950426256,4.54838413,84499.0,84498.0,0.47880313]
[1744950426534,4.53551413,84499.0,84498.0,0.52614152]
[1744950426727,4.49010413,84499.0,84498.0,0.52614152]
[1744950427305,4.43103808,84499.0,84498.0,0.52614152]
[1744950427547,4.30474109,84499.0,84498.0,0.52614152]
[1744950427789,4.24855231,84499.0,84498.0,0.52614152]
[1744950428236,3.94491797,84499.0,84498.0,0.54168237]
[1744950428430,2.81968608,84499.0,84498.0,0.54168237]
[1744950428633,2.76127252,84499.0,84498.0,0.54168237]
[1744950428813,2.54976252,84499.0,84498.0,0.54168237]
[1744950429019,2.49069646,84499.0,84498.0,0.54168237]
[1744950429441,2.3918804,84499.0,84498.0,0.54168237]
[1744950429625,2.38024846,84499.0,84498.0,0.54168237]
[1744950429808,2.3211824,84499.0,84498.0,0.54168237]
[1744950430014,2.26211634,84499.0,84498.0,0.54168237]
[1744950430233,2.25266683,84499.0,84498.0,0.54168237]
[1744950430433,2.19360077,84499.0,84498.0,0.54168237]
[1744950430604,2.16894077,84499.0,84498.0,0.54168237]
[1744950430809,2.10987471,84499.0,84498.0,0.54168237]
[1744950431144,2.05080865,84499.0,84498.0,0.54168237]
[1744950431485,1.99174259,84499.0,84498.0,0.54168237]
[1744950431766,1.93267653,84499.0,84498.0,0.54168237]
[1744950432240,1.87361047,84499.0,84498.0,0.54168237]
[1744950432449,1.81454441,84499.0,84498.0,0.54168237]
[1744950432623,1.75547835,84499.0,84498.0,0.54168237]
[1744950432942,1.69641229,84499.0,84498.0,0.54168237]
[1744950433393,1.69641229,84499.0,84498.0,0.52714152]
[1744950433578,1.69286873,84499.0,84498.0,0.52714152]
[1744950434461,1.68417873,84499.0,84498.0,0.52714152]
[1744950434668,1.65067873,84499.0,84498.0,0.52714152]
[1744950434870,1.60067873,84499.0,84498.0,0.52714152]
[1744950435125,1.58500873,84499.0,84498.0,0.52714152]
[1744950435333,1.57673874,84499.0,84498.0,0.52714152]
[1744950435671,1.51767268,84499.0,84498.0,0.52714152]
[1744950436120,1.49469268,84499.0,84498.0,0.52714152]
[1744950436876,1.46808268,84499.0,84498.0,0.52714152]
[1744950437324,1.46207268,84499.0,84498.0,0.52714152]
[1744950438366,1.40300712,84499.0,84498.0,0.52714152]
[1744950438771,1.33521247,84499.0,84498.0,0.52714152]
[1744950439090,1.27614691,84499.0,84498.0,0.52714152]
[1744950439482,1.22179691,84499.0,84498.0,0.52714152]
[1744950439866,1.17845691,84499.0,84498.0,0.52714152]
[1744950440069,1.14928692,84499.0,84498.0,0.52714152]
[1744950440538,1.13934692,84499.0,84498.0,0.52714152]
[1744950440718,1.02938212,84499.0,84498.0,0.54168237]
[1744950440884,0.99337073,84499.0,84498.0,0.54168237]
[1744950441088,0.9333511,84499.0,84498.0,0.54168237]
[1744950441321,0.87428554,84499.0,84498.0,0.54168237]
[1744950441829,0.80158442,84499.0,84498.0,0.55431344]
[1744950442036,0.11459442,84499.0,84498.0,0.55431344]
[1744950442608,0.10440442,84499.0,84498.0,0.55431344]
[1744950442991,0.04533886,84499.0,84498.0,0.55431344]
[1744950443233,0.0008428,84507.0,84506.0,0.14733391]
[1744950443391,0.0008428,84507.0,84506.0,0.60678182]
[1744950443595,0.0008428,84507.0,84506.0,0.61941289]
[1744950443911,0.0008428,84507.0,84506.0,0.60678182]
[1744950444314,0.0008428,84507.0,84506.0,0.61941289]
[1744950444519,0.00088794,84507.0,84506.0,0.61941289]
[1744950453531,0.00088794,84507.0,84506.0,0.42324671]
[1744950454035,0.00088794,84507.0,84506.0,0.47058062]
[1744950455043,0.00088794,84507.0,84506.0,0.60142062]
[1744950455243,0.00088794,84507.0,84506.0,0.47058062]
[1744950455456,0.00088794,84507.0,84506.0,0.60142062]
[1744950456446,0.00088794,84507.0,84506.0,0.31025289]
[1744950457948,0.0465,84513.0,84512.0,0.04733055]
[1744950458148,0.0465,84513.0,84512.0,0.16677846]
[1744950458436,0.03816,84513.0,84512.0,0.50677846]
[1744950458647,0.03734558,84515.0,84514.0,0.04732943]
[1744950458791,0.03734558,84515.0,84514.0,0.11944791]
[1744950459014,0.01015442,84515.0,84514.0,0.16677734]
[1744950460796,0.01015442,84515.0,84514.0,0.50677734]
[1744950461179,0.0008428,84525.0,84516.0,0.05995938]
[1744950461380,0.00088773,84517.0,84516.0,0.51940729]
[1744950462187,0.0457,84519.0,84518.0,0.04732719]
[1744950462450,0.0457,84519.0,84518.0,0.5067751]
[1744950464427,0.0465428,84524.0,84521.0,0.39915688]
[1744950464605,0.0008428,84524.0,84523.0,0.04732439]
[1744950465839,0.0008428,84524.0,84523.0,0.0547064]
[1744950468157,0.0008428,84524.0,84523.0,0.07037877]
[1744950468564,0.0008428,84525.0,84523.0,0.07037877]
[1744950469073,0.0008428,84525.0,84524.0,0.00738201]
[1744950469969,0.0008428,84525.0,84524.0,0.46682992]
[1744950470691,0.0008428,84525.0,84524.0,0.47788719]
[1744950472355,0.0008418,84533.0,84530.0,0.01183011]
[1744950472588,0.0008418,84533.0,84531.0,0.34]
[1744950473143,0.0008418,84533.0,84532.0,0.00738201]
[1744950473719,0.0008418,84533.0,84532.0,0.05470136]
[1744950479326,0.0502422,84541.0,84540.0,0.04731488]
[1744950479539,0.0502422,84541.0,84540.0,0.51815488]
[1744950480088,0.0502422,84541.0,84540.0,0.53453214]
[1744950480282,0.0008422,84541.0,84540.0,0.65398005]
[1744950481859,0.0008422,84541.0,84540.0,0.64659804]
[1744950494462,0.0499,84550.0,84548.0,0.0473104]
[1744950494675,0.05003542,84550.0,84549.0,0.45944791]
[1744950494855,0.00013542,84550.0,84549.0,0.45944791]
[1744950496448,0.0008422,84558.0,84557.0,0.04730536]
[1744950496610,0.0008422,84558.0,84557.0,0.63755327]
[1744950497265,0.0502422,84558.0,84557.0,0.50675327]
[1744950497484,0.0502422,84558.0,84557.0,0.63755327]
[1744950502673,0.0502422,84558.0,84557.0,0.50675327]
[1744950502832,0.0502422,84558.0,84557.0,0.63755327]